Cogmind - Beta 12 @@@ ROGUE MODE // 2023.05.27 @ 01:33:01 Player: Trione Result: Destroyed by S-10 Pest with Light Assault Rifle Performance ------------- Evolutions (0) 0 Regions Visited (4) 800 Robots Destroyed (31) 155 Value Destroyed (827) 827 Prototype IDs (1) 20 Alien Tech Used (0) 0 Bonus (0) 0 TOTAL SCORE: 1802 Bonus ------- None Cogmind --------- Core Integrity 0/250 Matter 291/300 Energy 231/250 System Corruption 1% Temperature Cool (55) Movement Rolling (110) Ox2 Location -9/Mines Parts ------- > --- POWER (1) -------- Ion Engine > --- PROPULSION (2) --- Wheel Wheel > --- UTILITY (2) ------ Improved Heat Sink High-capacity Storage Unit > --- WEAPON (2) ------- Particle Cannon Particle Cannon > --- INVENTORY (20) --- Light Treads Light Treads Wheel Improved Heat Sink High-capacity Storage Unit Humpback High-capacity Matter Pod (200) High-capacity Matter Pod (200) High-capacity Matter Pod (200) High-capacity Matter Pod (194) Hacking Suite EM Pulse Gun Particle Cannon Particle Cannon Assault Rifle Assault Rifle Datajack Hammer Katana Peak State ------------ > --- POWER ------------ Light Ion Engine > --- PROPULSION ------- Light Treads Wheel > --- UTILITY ---------- Improved Heat Sink High-capacity Storage Unit > --- WEAPON ----------- Particle Cannon Particle Cannon > --- INVENTORY -------- Light Treads Wheel Wheel High-capacity Storage Unit High-capacity Matter Pod High-capacity Matter Pod High-capacity Matter Pod High-capacity Matter Pod Hacking Suite EM Pulse Gun Particle Cannon Particle Cannon Assault Rifle Assault Rifle Datajack Hammer [Rating: 13] Favorites ----------- Power Light Ion Engine Engine Light Ion Engine Propulsion Wheel Treads Light Treads Wheel Wheel Utility High-capacity Storage Unit Device Improved Heat Sink Storage High-capacity Storage Unit Weapon Particle Cannon Energy Gun Small Laser Energy Cannon Particle Cannon Ballistic Gun Assault Rifle Build | -11 -10 -10 -10 -9 ------- Run | Jun Mat Min Exi Min Slots Evolved . | . . . . . Power . | . . . . . Propulsion . | . . . . . Utility . | . . . . . Weapon . | . . . . . Parts Attached 22 | 6 12 1 . 3 Power 3 | 1 1 . . 1 Engine 3 | 1 1 . . 1 Core . | . . . . . Reactor . | . . . . . Propulsion 10 | 2 6 . . 2 Treads 4 | . 3 . . 1 Leg . | . . . . . Wheel 6 | 2 3 . . 1 Hover . | . . . . . Flight . | . . . . . Utility 5 | 1 3 1 . . Device 2 | . 1 1 . . Storage 3 | 1 2 . . . Processor . | . . . . . Hackware . | . . . . . Protection . | . . . . . Artifact . | . . . . . Weapon 4 | 2 2 . . . Energy Gun 1 | 1 . . . . Energy Cannon 2 | . 2 . . . Ballistic Gun 1 | 1 . . . . Ballistic Cannon . | . . . . . Launcher . | . . . . . Special Weapon . | . . . . . Impact Weapon . | . . . . . Slashing Weapon . | . . . . . Piercing Weapon . | . . . . . Special Melee Weapon . | . . . . . Unidentified Prototypes 1 | . . 1 . . Parts Lost 6 | . 4 1 . 1 Power 2 | . 1 . . 1 Propulsion 2 | . 2 . . . Utility 1 | . . 1 . . Weapon 1 | . 1 . . . Highest Loss Streak 2 | . 2 1 . 1 To Critical Strikes . | . . . . . Average Slot Usage (%) 93 | . 89 93 100 100 Engine 14 | . 14 14 14 14 Wheel 25 | . 22 28 28 27 Device 6 | . 1 8 14 14 Storage 19 | . 25 14 14 14 Energy Gun 2 | . 5 . . . Energy Cannon 18 | . 9 28 28 28 Ballistic Gun 4 | . 8 . . . Naked Turns . | . . . . . Heaviest Build 55 | 13 55 52 52 54 Greatest Support 26 | 26 26 20 20 20 Greatest Overweight (x) 5 | . 5 2 2 2 Average Overweight (x) 2 | . 2 2 2 2 Largest Inventory Capacity 20 | 8 20 20 20 20 Average Capacity 19 | 7 18 20 20 20 Most Carried 20 | 4 19 17 18 20 Average Carried 15 | 1 13 16 16 18 Final Capacity 20 | 8 20 20 20 20 Final Carried 20 | 4 16 16 18 20 Class Distribution -------------------- 100% | Mutant Dominant Class ---------------- Mutant | -10/Materials Mutant | -10/Mines Mutant | -10/Exiles Mutant | -9/Mines Resources | -11 -10 -10 -10 -9 ----------- Run | Jun Mat Min Exi Min Matter Collected 1390 | 232 777 182 . 199 Remotely . | . . . . . Salvage Created 1206 | . 806 151 . 249 Parts 62 | . 42 8 . 12 Haulers Intercepted 1 | . 1 . . . Recyclers Shooed 2 | . 1 . . 1 Parts Field Recycled . | . . . . . Retrieved Matter . | . . . . . Parts Self-Destructed . | . . . . . Prevented . | . . . . . Kills | -11 -10 -10 -10 -9 ------- Run | Jun Mat Min Exi Min Combat Hostiles Destroyed 23 | . 13 4 . 6 Guns 7 | . 7 . . . Cannons 15 | . 6 4 . 5 Classes Destroyed 8 | . 7 . . 1 Worker 1 | . 1 . . . Hauler 1 | . 1 . . . Recycler 3 | . 3 . . . Operator 2 | . 2 . . . Watcher 1 | . 1 . . . Swarmer 4 | . 3 . . 1 Grunt 18 | . 10 4 . 4 Duelist 1 | . . . . 1 Best Kill Streak 4 | . 3 4 . 2 Combat Bots Only 4 | . 2 4 . 2 Max Kills in Single Turn 1 | . 1 1 . 1 Gunslinging . | . . . . . Exploded . | . . . . . Melee . | . . . . . Uniques/NPCs Destroyed . | . . . . . Combat | -11 -10 -10 -10 -9 -------- Run | Jun Mat Min Exi Min Damage Taken 899 | . 706 10 . 183 Core 258 | . 188 10 . 60 Absorbed by Shields . | . . . . . Core Remaining (%) 100 | 100 . . . . Volleys Fired 99 | . 77 6 . 16 Largest 2 | . 2 2 . 2 Hottest 136 | . 136 136 . 136 Shots Fired 170 | . 126 12 . 32 Gun 81 | . 81 . . . Cannon 89 | . 45 12 . 32 Launcher . | . . . . . Special . | . . . . . Kinetic 54 | . 54 . . . Thermal 116 | . 72 12 . 32 Explosive . | . . . . . Electromagnetic . | . . . . . Robot Hit Streak 14 | . 14 2 . 6 Robot Miss Streak 4 | . 4 2 . 4 Penetration Max . | . . . . . Secondary Targets . | . . . . . Shots Hit Robots 105 | . 83 4 . 18 Core Hits 39 | . 29 4 . 6 Critical Kills 1 | . . . . 1 Critical Parts Destroyed 1 | . 1 . . . Critical Strikes 2 | . 1 . . 1 Meltdown 1 | . . . . 1 Destroy 1 | . 1 . . . Melee Attacks . | . . . . . Impact . | . . . . . Slashing . | . . . . . Piercing . | . . . . . Sneak Attacks . | . . . . . Combat Hostiles . | . . . . . Follow-up Attacks . | . . . . . Damage Inflicted 1758 | . 1284 103 . 371 Guns 729 | . 729 . . . Cannons 1029 | . 555 103 . 371 Explosions . | . . . . . Melee . | . . . . . Ramming . | . . . . . Kinetic 541 | . 541 . . . Thermal 1217 | . 743 103 . 371 Explosive . | . . . . . Electromagnetic . | . . . . . Impact . | . . . . . Slashing . | . . . . . Piercing . | . . . . . Highest Corruption 1 | . 1 1 1 1 Average Corruption 1 | . 1 1 1 1 Corruption Purged . | . . . . . Corruption Blocked . | . . . . . Effects 15 | . 3 2 7 3 Message Errors 3 | . 1 1 1 . Matter Fused 5 | . 2 . 2 1 Heat Flow Errors 2 | . . 1 1 . Energy Discharges 2 | . . . 2 . Data Loss (major) 2 | . . . 1 1 Alerts 1 | . . . . 1 Overload Shots . | . . . . . Overflow Damage 19 | . 18 . . 1 Projectiles 19 | . 18 . . 1 Explosions . | . . . . . Melee . | . . . . . Knockbacks . | . . . . . Impact . | . . . . . Kinetic . | . . . . . Secondary . | . . . . . Self-Inflicted Damage . | . . . . . Shots . | . . . . . Rammed . | . . . . . Targets Rammed . | . . . . . Kicked . | . . . . . Crushed . | . . . . . Highest Temperature 257 | . 257 212 204 253 Average Temperature 79 | . 72 61 119 107 Received Heat Transfer 396 | . 366 6 . 24 Siege Activations . | . . . . . Robots Corrupted . | . . . . . Combat Hostiles . | . . . . . Parts Fried . | . . . . . Impact Corruptions . | . . . . . Robots Melted 1 | . . . . 1 Combat Hostiles 1 | . . . . 1 Parts Melted 2 | . 1 . . 1 Heat Transferred 2275 | . 1424 185 . 666 Parts Sabotaged . | . . . . . Parts Stolen . | . . . . . Parts Stripped . | . . . . . Power Chain Reactions . | . . . . . Missiles Intercepted . | . . . . . Alert | -11 -10 -10 -10 -9 ------- Run | Jun Mat Min Exi Min Peak Influence 246 | . 246 165 . 160 Initial 95 | . . 95 . . Average 101 | . 112 114 . 45 Maximum Alert Level 1 | . 1 . . . Low Security (%) 94 | 100 90 100 . 100 Level 1 5 | . 9 . . . Level 2 . | . . . . . Level 3 . | . . . . . Level 4 . | . . . . . Level 5 . | . . . . . High Security . | . . . . . Max Security . | . . . . . Squads Dispatched 3 | . 3 . . . Investigation 1 | . 1 . . . Extermination . | . . . . . Reinforcement 2 | . 2 . . . Assault . | . . . . . Garrison . | . . . . . Intercept . | . . . . . Searches Triggered . | . . . . . Construction Impeded . | . . . . . Haulers Reinforced . | . . . . . Active Scanning Responses . | . . . . . Cargo Convoy Interrupts . | . . . . . Stealth | -11 -10 -10 -10 -9 --------- Run | Jun Mat Min Exi Min Distress Signals 1 | . 1 . . . Communications Jammed . | . . . . . Distress Signals . | . . . . . Times Spotted 46 | . 33 4 . 9 Peak Tracking Total 8 | . 8 4 . 3 Tactical Retreats 4 | . 3 . . 1 Traps | -11 -10 -10 -10 -9 ------- Run | Jun Mat Min Exi Min Traps Triggered 1 | . 1 . . . Indirectly . | . . . . . Trap Hack Attempts . | . . . . . Triggered . | . . . . . Disarmed . | . . . . . Reprogrammed . | . . . . . Reused . | . . . . . Traps Extracted . | . . . . . Installed . | . . . . . Triggered . | . . . . . Machines | -11 -10 -10 -10 -9 ---------- Run | Jun Mat Min Exi Min Machines Disabled 2 | . 1 . . 1 Max in Single Turn 1 | . 1 . . 1 Machines Repaired . | . . . . . Machines Sabotaged . | . . . . . Overloaded Fab Kills . | . . . . . Hacking | -11 -10 -10 -10 -9 --------- Run | Jun Mat Min Exi Min Machines Accessed 6 | . 6 . . . Terminals 5 | . 5 . . . Fabricators . | . . . . . Repair Stations . | . . . . . Recycling Units 1 | . 1 . . . Scanalyzers . | . . . . . Garrison Access . | . . . . . Total Hacks 15 | . 15 . . . Successful 10 | . 10 . . . Failed 5 | . 5 . . . Catastrophic . | . . . . . Database Lockouts . | . . . . . Manual 12 | . 12 . . . Terminals 14 | . 14 . . . Fabricators . | . . . . . Repair Stations . | . . . . . Recycling Units 1 | . 1 . . . Scanalyzers . | . . . . . Garrison Access . | . . . . . Terminal Hacks 4 | . 4 . . . Terminal Index 1 | . 1 . . . Locate Traps 3 | . 3 . . . Fabricator Hacks . | . . . . . Repair Station Hacks . | . . . . . Recycling Unit Hacks . | . . . . . Scanalyzer . | . . . . . Garrison Access Hacks . | . . . . . Unauthorized Hacks 6 | . 6 . . . Terminals 5 | . 5 . . . Track 1 | . 1 . . . Botnet 4 | . 4 . . . Fabricators . | . . . . . Repair Stations . | . . . . . Recycling Units 1 | . 1 . . . Tunnel 1 | . 1 . . . Scanalyzers . | . . . . . Garrison Access . | . . . . . Data Cores Recovered 1 | . 1 . . . Used 1 | . 1 . . . Hacking Detections 5 | . 5 . . . Full Trace Events . | . . . . . Feedback Events . | . . . . . Feedback Blocked . | . . . . . Robot Schematics Acquired . | . . . . . Robots Built . | . . . . . Authchips . | . . . . . Time . | . . . . . Total Robot Build Rating . | . . . . . Part Schematics Acquired . | . . . . . Parts Built . | . . . . . Authchips . | . . . . . Time . | . . . . . Total Part Build Rating . | . . . . . Parts Repaired . | . . . . . Time . | . . . . . Parts Recycled . | . . . . . Recycled Matter . | . . . . . Retrieved Matter . | . . . . . Retrieved Components . | . . . . . Parts Scanalyzed . | . . . . . Part Schematics Acquired . | . . . . . Parts Damaged . | . . . . . Bothacking | -11 -10 -10 -10 -9 ------------ Run | Jun Mat Min Exi Min Used RIF Installer . | . . . . . Robots Hacked . | . . . . . Non-combat . | . . . . . Combat . | . . . . . Robot Hacks Applied . | . . . . . Relay Couplers Released . | . . . . . Fabnet Peak Effective % . | . . . . . Robots Rewired . | . . . . . Allies Hacked . | . . . . . Hacks Repelled . | . . . . . Allies | -11 -10 -10 -10 -9 -------- Run | Jun Mat Min Exi Min Total Allies . | . . . . . Largest Group . | . . . . . Highest-Rated Group . | . . . . . Highest-Rated Ally . | . . . . . Total Orders . | . . . . . Ally Attacks . | . . . . . Total Damage . | . . . . . Kills . | . . . . . Allies Corrupted . | . . . . . Allies Melted . | . . . . . Intel | -11 -10 -10 -10 -9 ------- Run | Jun Mat Min Exi Min Robot Analysis Total . | . . . . . Derelict Logs Recovered 2 | . . 1 . 1 Drone Launches . | . . . . . Drone Recoveries . | . . . . . Exploration | -11 -10 -10 -10 -9 ------------- Run | Jun Mat Min Exi Min Turns Passed 2371 | 39 1170 406 512 244 Spaces Moved 1704 | 30 767 280 465 162 Core 1 | 1 . . . . Treads . | . . . . . Legs . | . . . . . Wheels 1703 | 29 767 280 465 162 Hover . | . . . . . Flight . | . . . . . Fastest Speed 50 | 50 90 110 110 110 Average Speed 113 | 89 117 110 110 110 Slowest Speed 155 | 100 155 110 110 110 Overloaded Moves . | . . . . . Propulsion Burnouts . | . . . . . Robots Hopped . | . . . . . Cave-ins Triggered . | . . . . . Exploration Rate (%) 49 | 3 88 43 78 35 Regions Visited 4 Branch Regions 3 Pre-discovered Areas 3 | . 1 1 . 1 Known Exits Taken . | . . . . . Unknown Exits Taken 4 | 1 1 1 1 . Scrap Searched 1 | . . 1 . . Spaces Dug . | . . . . . Terrain Destroyed . | . . . . . Melee . | . . . . . Projectile . | . . . . . AOE . | . . . . . Terrain Rammed . | . . . . . Walls Destroyed . | . . . . . Machines Disabled . | . . . . . Actions | -11 -10 -10 -10 -9 --------- Run | Jun Mat Min Exi Min Total 1970 | 39 906 365 465 195 Wait 114 | . 26 77 . 11 Move 1700 | 29 766 279 464 162 Hop . | . . . . . Pick Up 30 | 4 21 1 1 3 Fast Attach 8 | 6 2 . . . Attach 7 | . 5 1 . 1 Detach . | . . . . . Swap 8 | . 5 1 . 2 Drop 4 | . 4 . . . Fire 99 | . 77 6 . 16 Melee . | . . . . . Ram . | . . . . . Kick . | . . . . . Crush . | . . . . . Escape Stasis . | . . . . . Rewire . | . . . . . Trap . | . . . . . Miscellaneous . | . . . . . Route ------- -11/Junkyard -10/Materials (discovered 4 exits: [*Mat x3] / [*Min]) -10/Mines (discovered 3 exits: [*Mat x2] / *Exi) -10/Exiles (discovered 2 exits: [*Min x2]) -9/Mines History --------- Turn | Location | Event 19 | -11/Junkyard | Discovered new exit (range 15) 40 | -11/Junkyard | Entered Materials 116 | -10/Materials | Discovered new exit (range 13) 246 | -10/Materials | Discovered new exit (range 11) 313 | -10/Materials | Build established: Mutant 335 | -10/Materials | Discovered new exit (range 3) 595 | -10/Materials | Core integrity fell below 50% 997 | -10/Materials | Discovered new exit (range 5) 1210 | -10/Materials | Entered Mines 1217 | -10/Mines | Learned Materials stockpile data 1262 | -10/Mines | Discovered new exit (range 13) 1276 | -10/Mines | Found a damaged Exp. Sensor Array with a note attached 1278 | -10/Mines | Found Prototype Device 1279 | -10/Mines | Identified Exp. Sensor Array 1383 | -10/Mines | Discovered new exit (range 15) 1392 | -10/Mines | Learned location of Storage (-7) 1431 | -10/Mines | Excavation squad dispatched 1431 | -10/Mines | A large section of the Mines collapsed 1610 | -10/Mines | Deemed a non-threat by the Exiles lab entrance 1611 | -10/Mines | Discovered new exit (range 5) 1616 | -10/Mines | Entered Exiles 1631 | -10/Exiles | Discovered new exit (range 15) 1646 | -10/Exiles | Met 8R-AWN 1662 | -10/Exiles | Met EX-HEX 1720 | -10/Exiles | Met EX-DEC 1744 | -10/Exiles | Visited The Gauntlet 1825 | -10/Exiles | Met EX-BIN 2115 | -10/Exiles | Discovered new exit (range 12) 2128 | -10/Exiles | Entered Mines 2139 | -9/Mines | Met a Derelict bent on vengeance 2262 | -9/Mines | Core integrity fell below 20% 2372 | -9/Mines | Destroyed by S-10 Pest with Light Assault Rifle Last Messages --------------- 02281_ Acquired derelict log, extracted data. World map updated: -9/Materials. 02289_ G-34 Mercenary destroyed. 02296_ Acquired Imp. Heat Sink. 02306_ K-01 Serf collects debris. 02308_ Acquired 46 matter. 02310_ Acquired Ion Engine. 02316_ Laser Drill disabled. 02319_ G-34 Mercenary destroyed. 02327_ K-01 Serf collects debris. 02335_ Lgt. Ion Engine destroyed. 02337_ K-01 Serf collects debris. 02341_ L-31 Rogue destroyed. 02344_ Acquired 58 matter. 02346_ Acquired Katana. 02347_ System corrupted: Matter fused (-9). 02350_ K-01 Serf collects debris. 02367_ S-10 Pest destroyed. 02369_ K-01 Serf collects debris. 02370_ Destroyed Flight Unit. Map ----- +----------------------------------------------------+ | ???????????????????????????????????????? | | ???????????????????????????????????????? | | ???????????????????????????????????????? | | ???????????????????????????????????????? | | ???????????????????????????????????????? | | ???????????????????????????????????????? | | ???????????????????????????????????????? | | ???????????????????????????????????????? | | ???????????????????????????????????????? | | ???????????????????????????????????????? | | ???????????????????????????????????????? | | ???????????????????????????????????????? | | ???????????????????????????????????????? | | ??????????#######??????????????????????? | | ???????? ? #??????????????????????? | | ???????? #??????????????????????? | | ???????" """ #??????????????????????? | | ???????" """ #??????????????????????? | | ??????"" """ #??????????????????????? | | ?????? #????#?????????????????? | | ?????""" """ #??? #?????????????????? | | ???? """ """ ### #?????????????????? | | ???# """ """%* k #?????????????????? | | ???# r #?????????????????? | | ???# """ """ ss######?????????????????? | | ???# """ "" @#??????????????????????? | | ???# """ " #??????????????????????? | | ???# #??????????????????????? | | ???# #??????????????????????? | | ???# #??????????????????????? | | ???######## #####??????????????????????? | | ??????????# #??????????????????????????? | | ??????????# #??????????????????????????? | | ??????????# #??????????????????????????? | | ??????????#*#??????????????????????????? | | ??????????# #??????????????????????????? | | ??????????#[#???????? ?????????????????? | | ??????????# #???????? ????????????????? | | ??????????# #?????? ????????????????? | | ??????????# #?????? ????????????????? | | ??????????# #????? #???????????????? | | ??????????# #????? #??????????????? | | ??????????# #?????# ###???????????? | | ??????????# #?###?? ##??????????? | | ??????????# #?# ??? ##?????????? | | ??????????# #?# #???? #?????????? | | ??????????# #?# #????? #?????????? | | ??????????# #?# #?????? #?????????? | | ??????????# #?# #??????# #??????????? | | ?????????##=### ######## #????????????? | +----------------------------------------------------+ Best States ------------- Heat Dissipation 39 Energy Generation 10 Energy Capacity 250 Matter Stores 500 Matter Capacity 500 Sight Range 16 Terrain Scan Density 10 Evasion (%) 42 Recoil Reduction 1 Item Schematics ----------------- None Robot Schematics ------------------ None Fabricated ------------ Nothing Alien Tech Used ----------------- None Achievements -------------- None Challenges ------------ None Game ------ Seed HeatCooledActivator Manual? 0 Play Time 00:24:15 Cumulative 1231.0 hours Start 2023.05.27 @ 01:06:44 End 2023.05.27 @ 01:33:01 Sessions 1 Manual Loads 0 Difficulty Rogue Special Mode None Game No. 452 Rogue 452 Adventurer 0 Explorer 0 Win Type - Total 26 Types 13/2/7/0/0/0/4/0/0 Lore% 89 Gallery% 91 Achievement% 85 Wizard Run 0 Options --------- ASCII 0 Keyboard 0 Movement Vi Keybinds 0 Fullscreen 0 Font 12/Crisp Map View 76x50 Tactical HUD 1 Map Filters NONE Filters NONE Steam 1 RUN: ece8e929-0404-44f2-97df-bd7de25254cf